bitfinex/quotes_SOLUSD_20230105
["timestamp","ask_amount","ask_price","bid_price","bid_amount"]
[1672918374328,32.83,13.18,13.165,99.42737149]
[1672918374520,32.83,13.18,13.166,20.0]
[1672918374733,32.83,13.18,13.168,20.0]
[1672918374965,32.83,13.18,13.17,20.0]
[1672918377381,32.83,13.18,13.168,20.0]
[1672918377914,32.83,13.18,13.17,20.0]
[1672918378738,32.83,13.18,13.168,20.0]
[1672918379477,32.83,13.18,13.169,22.41737149]
[1672918380005,32.83,13.18,13.17,20.0]
[1672918380629,32.83,13.18,13.171,56.98]
[1672918380838,32.83,13.18,13.172,20.0]
[1672918382425,6.58,13.18,13.172,20.0]
[1672918382837,6.58,13.18,13.171,56.98]
[1672918385779,6.58,13.18,13.172,20.0]
[1672918389888,6.58,13.18,13.171,56.98]
[1672918390520,6.58,13.18,13.171,20.0]
[1672918390916,6.58,13.18,13.17,76.99]
[1672918391129,6.58,13.18,13.17,56.99]
[1672918392813,6.58,13.18,13.17,20.0]
[1672918393025,6.58,13.18,13.172,20.0]
[1672918393569,6.58,13.18,13.171,56.98]
[1672918394299,6.58,13.18,13.17,56.99]
[1672918395336,6.58,13.18,13.169,20.0]
[1672918395547,6.58,13.18,13.17,56.99]
[1672918395751,394.0,13.209,13.17,56.99]
[1672918395968,20.91537199,13.204,13.181,266.15164499]
[1672918396188,10.0,13.21,13.184,266.15164499]
[1672918396399,10.0,13.21,13.187,38.65164499]
[1672918396610,10.0,13.21,13.189,20.0]
[1672918396809,16.56,13.21,13.19,83.46]
[1672918397016,16.56,13.21,13.19,147.32134365]
[1672918397227,16.56,13.21,13.191,86.27871514]
[1672918397437,42.8,13.21,13.193,20.0]
[1672918397667,42.77,13.21,13.194,76.88]
[1672918397977,42.77,13.21,13.195,20.0]
[1672918398189,42.77,13.21,13.196,56.87]
[1672918398384,42.77,13.21,13.197,20.0]
[1672918400606,56.82,13.209,13.19,56.9]
[1672918400805,6.51,13.2,13.19,56.9]
[1672918401014,6.51,13.2,13.188,22.41737149]
[1672918401220,6.51,13.2,13.191,20.0]
[1672918403004,6.51,13.2,13.191,42.41737149]
[1672918403213,6.51,13.2,13.191,20.0]
[1672918404285,6.51,13.2,13.191,42.41737149]
[1672918404815,6.51,13.2,13.193,20.0]
[1672918405740,111.3879,13.204,13.193,42.41737149]
[1672918405952,20.0,13.203,13.193,20.0]
[1672918409439,20.0,13.203,13.193,42.41737149]
[1672918411005,20.0,13.203,13.193,20.0]
[1672918414382,20.0,13.203,13.195,20.0]
[1672918418266,20.0,13.203,13.192,56.89]
[1672918418474,20.0,13.203,13.19,20.0]
[1672918418475,13.05,13.2,13.19,20.0]
[1672918419229,13.05,13.2,13.189,115.56164499]
[1672918421012,13.05,13.2,13.189,56.91]
[1672918421228,20.0,13.198,13.185,56.92]
[1672918421626,20.0,13.197,13.184,76.93]
[1672918426386,20.0,13.197,13.184,99.34737149]
[1672918428880,20.0,13.197,13.184,76.93]
[1672918432680,20.0,13.197,13.184,99.34737149]
[1672918435530,112.5215,13.198,13.184,99.34737149]
[1672918435734,112.5215,13.198,13.186,20.0]
[1672918435937,112.5215,13.198,13.187,56.91]
[1672918436152,112.5215,13.198,13.188,20.0]
[1672918436364,112.5215,13.198,13.19,20.0]
[1672918436580,112.5215,13.198,13.191,56.9]
[1672918436901,112.5215,13.198,13.189,56.91]
[1672918438065,112.5215,13.198,13.19,20.0]
[1672918443111,112.5215,13.198,13.189,56.91]
[1672918443301,112.5215,13.198,13.188,20.0]
[1672918450125,13.05,13.2,13.188,20.0]
[1672918450340,108.3138,13.202,13.19,20.0]
[1672918451596,108.3138,13.202,13.19,42.41737149]
[1672918452886,108.3138,13.202,13.19,20.0]
[1672918453070,6.47,13.2,13.19,20.0]
[1672918454241,56.86,13.199,13.185,56.92]
[1672918454433,56.86,13.199,13.183,76.93]
[1672918454646,56.86,13.199,13.185,20.0]
[1672918455090,56.86,13.199,13.186,20.0]
[1672918457487,6.58,13.2,13.186,20.0]
[1672918457799,6.58,13.2,13.188,20.0]
[1672918458223,56.86,13.199,13.188,20.0]
[1672918463184,6.58,13.2,13.188,20.0]
[1672918465469,56.86,13.199,13.188,20.0]
[1672918465804,6.58,13.2,13.188,20.0]
[1672918466226,6.58,13.2,13.188,42.41737149]
[1672918467694,6.58,13.2,13.188,158.92737149]
[1672918475041,6.58,13.2,13.19,20.0]
[1672918492102,6.58,13.2,13.19,42.41737149]
[1672918492316,108.3138,13.202,13.191,56.9]
[1672918492499,108.3138,13.202,13.192,20.0]
[1672918492712,108.3138,13.202,13.193,56.89]
[1672918492932,99.33426826,13.206,13.193,56.89]
[1672918493164,113.0957,13.209,13.194,40.0]
[1672918493346,113.0957,13.209,13.195,56.88]
[1672918493557,113.0957,13.209,13.196,20.0]
[1672918493779,113.0957,13.209,13.197,56.87]
[1672918494082,113.0957,13.209,13.198,20.0]
[1672918496182,113.0957,13.209,13.198,42.41737149]
[1672918496406,113.0957,13.209,13.198,20.0]
[1672918497336,113.0957,13.209,13.198,42.41737149]
[1672918497547,113.0957,13.209,13.198,20.0]
[1672918499069,113.0957,13.209,13.197,56.87]
[1672918499246,113.0957,13.209,13.196,76.87]
[1672918500843,113.0957,13.209,13.196,99.28737149]
[1672918501160,113.0957,13.209,13.196,76.87]
[1672918504522,113.0957,13.209,13.196,99.28737149]
[1672918508195,16.57,13.21,13.196,99.28737149]
[1672918512812,10.0,13.21,13.196,149.57819306]
[1672918513024,10.0,13.21,13.196,192.3393619]
[1672918513231,10.0,13.21,13.196,248.4815464]
[1672918513647,10.0,13.21,13.198,20.0]
[1672918513858,10.0,13.21,13.199,56.86]
[1672918514062,10.0,13.21,13.2,20.0]
[1672918514289,10.0,13.21,13.202,20.0]
[1672918514506,10.0,13.21,13.204,20.0]
[1672918516177,10.0,13.21,13.204,42.41737149]
[1672918516501,10.0,13.21,13.205,76.84]
[1672918516704,10.0,13.21,13.206,20.0]
[1672918516916,10.0,13.21,13.207,56.83]
[1672918517134,10.0,13.21,13.207,79.24737149]
[1672918517337,6.6,13.22,13.208,20.0]
[1672918517552,6.6,13.22,13.208,99.23737149]
[1672918517749,6.6,13.22,13.208,42.41737149]
[1672918518166,6.6,13.22,13.208,20.0]
[1672918519436,116.3992,13.228,13.209,79.23737149]
[1672918519636,56.74,13.227,13.21,20.0]
[1672918519844,56.74,13.227,13.212,20.0]
[1672918520495,20.0,13.226,13.212,42.41737149]
[1672918520685,20.0,13.226,13.212,20.0]
[1672918521125,20.0,13.226,13.213,22.41737149]
[1672918521336,20.0,13.226,13.214,20.0]
[1672918527024,20.0,13.226,13.214,42.41737149]
[1672918527233,20.0,13.227,13.214,20.0]
[1672918527446,20.0,13.226,13.213,56.8]
[1672918527667,20.0,13.226,13.212,20.0]
[1672918528074,76.75,13.226,13.212,20.0]
[1672918528288,20.0,13.225,13.212,20.0]
[1672918528815,20.0,13.225,13.214,20.0]
[1672918529007,20.0,13.226,13.214,20.0]
[1672918529979,20.0,13.226,13.213,79.21737149]
[1672918530290,20.0,13.226,13.213,56.8]
[1672918530817,20.0,13.226,13.212,56.81]
[1672918532586,20.0,13.226,13.211,56.81]
[1672918532901,20.0,13.226,13.212,20.0]
[1672918533111,20.0,13.226,13.213,56.8]
[1672918533346,76.74,13.227,13.213,56.8]
[1672918533535,20.0,13.227,13.213,56.8]
[1672918535864,20.0,13.227,13.213,79.21737149]
[1672918536074,20.0,13.227,13.213,56.8]
[1672918537012,20.0,13.227,13.213,79.21737149]
[1672918537229,20.0,13.227,13.213,56.8]
[1672918538068,20.0,13.227,13.214,20.0]
[1672918538571,20.0,13.227,13.215,56.79]
[1672918538786,20.0,13.226,13.213,56.8]
[1672918538991,20.0,13.225,13.213,56.8]
[1672918540476,20.0,13.226,13.214,20.0]
[1672918541640,20.0,13.226,13.213,56.8]
[1672918543538,20.0,13.226,13.214,20.0]
[1672918545301,116.3992,13.228,13.215,56.79]
[1672918545843,116.3992,13.228,13.216,22.41737149]
[1672918546031,116.3992,13.228,13.217,76.78]
[1672918546481,104.4763,13.23,13.217,76.78]
[1672918546706,104.4763,13.23,13.219,20.0]
[1672918546883,104.4763,13.23,13.221,20.0]
[1672918547216,6.6,13.23,13.221,20.0]
[1672918547412,117.463,13.235,13.222,56.76]
[1672918547627,117.463,13.235,13.223,20.0]
[1672918547628,20.0,13.234,13.223,20.0]
[1672918551212,20.0,13.234,13.225,20.0]
[1672918551524,56.69,13.239,13.225,20.0]
[1672918551731,6.57,13.24,13.227,20.0]
[1672918555706,6.57,13.24,13.229,20.0]
[1672918557304,6.57,13.24,13.227,76.74]
[1672918557510,6.57,13.24,13.227,20.0]
[1672918559713,66.41451195,13.24,13.226,56.75]
[1672918560041,20.0,13.238,13.223,20.0]
[1672918560224,306.9419,13.237,13.223,20.0]
[1672918560440,20.0,13.236,13.223,20.0]
[1672918560656,20.0,13.234,13.223,20.0]
[1672918560865,20.0,13.233,13.223,20.0]
[1672918561396,20.0,13.233,13.225,20.0]
[1672918561608,20.0,13.236,13.225,20.0]
[1672918562748,20.0,13.236,13.223,20.0]
[1672918562963,20.0,13.235,13.222,56.76]
[1672918564242,40.0,13.236,13.222,56.76]
[1672918564872,20.0,13.236,13.222,56.76]
[1672918565087,20.0,13.236,13.223,20.0]
[1672918565925,20.0,13.236,13.225,20.0]
[1672918566137,20.0,13.236,13.227,20.0]
[1672918568553,20.0,13.236,13.225,20.0]
[1672918573261,20.0,13.236,13.224,56.75]
[1672918573476,20.0,13.236,13.223,20.0]
[1672918574230,6.47,13.23,13.222,56.76]
[1672918574421,6.47,13.23,13.217,56.78]
[1672918574641,6.47,13.23,13.219,76.78]
[1672918577800,6.47,13.23,13.218,56.78]
[1672918578625,148.7161,13.23,13.218,56.78]
[1672918579062,148.7161,13.23,13.218,20.0]
[1672918579376,148.7161,13.23,13.217,56.78]
[1672918579589,20.0,13.229,13.217,56.78]
[1672918579801,56.74,13.228,13.213,56.8]
[1672918579991,6.46,13.22,13.213,56.8]
[1672918580412,6.46,13.22,13.212,119.1668]
[1672918580847,6.46,13.22,13.213,20.0]
[1672918581488,6.46,13.22,13.213,76.8]
[1672918581896,6.46,13.22,13.213,56.8]
[1672918582508,6.46,13.22,13.21,20.0]
[1672918582509,6.46,13.22,13.211,56.81]
[1672918584017,76.75,13.226,13.211,56.81]
[1672918584228,20.0,13.224,13.211,56.81]
[1672918584560,130.3456,13.223,13.211,56.81]
[1672918585466,20.0,13.222,13.211,20.0]
[1672918585892,20.0,13.222,13.21,56.81]
[1672918586225,130.3456,13.223,13.21,56.81]
[1672918586629,130.3456,13.223,13.211,20.0]
[1672918588953,130.3456,13.223,13.21,76.81]
[1672918589366,130.3456,13.223,13.21,56.81]
[1672918591058,20.0,13.222,13.21,56.81]
[1672918591595,130.3456,13.223,13.206,56.83]
[1672918591902,20.0,13.222,13.21,56.81]
[1672918592092,20.0,13.222,13.207,20.0]
[1672918592303,20.0,13.222,13.208,56.82]
[1672918592729,132.4769,13.222,13.208,56.82]
[1672918593876,132.4769,13.222,13.206,56.83]
[1672918594088,189.2369,13.222,13.206,56.83]
[1672918594519,189.2369,13.222,13.206,79.24737149]
[1672918594717,169.2369,13.222,13.207,20.0]
[1672918594937,169.2369,13.222,13.208,56.82]
[1672918595991,169.2369,13.222,13.207,56.83]
[1672918596406,20.0,13.221,13.207,56.83]
[1672918597571,169.2369,13.222,13.207,56.83]
[1672918597780,112.4769,13.222,13.207,56.83]
[1672918598835,112.4769,13.222,13.21,56.81]
[1672918599045,112.4769,13.222,13.211,20.0]
[1672918599470,112.4769,13.222,13.21,20.0]
[1672918599681,112.4769,13.222,13.21,76.81]
[1672918600090,112.4769,13.222,13.21,20.0]
[1672918600630,112.4769,13.222,13.209,174.4613]
[1672918601153,112.4769,13.222,13.209,117.6413]
[1672918601355,112.4769,13.222,13.21,20.0]
[1672918601681,112.4769,13.222,13.211,56.81]
[1672918601876,112.4769,13.222,13.21,76.81]
[1672918604078,112.4769,13.222,13.21,56.81]
[1672918604719,20.0,13.221,13.209,117.6413]
[1672918608508,12.95,13.22,13.209,117.6413]
[1672918615344,12.95,13.22,13.21,56.81]
[1672918616817,12.95,13.22,13.209,117.6413]
[1672918618073,20.0,13.219,13.206,56.83]
[1672918618290,20.0,13.218,13.203,56.84]
[1672918618502,20.0,13.217,13.203,56.84]
[1672918618906,20.0,13.216,13.203,56.84]
[1672918619118,20.0,13.215,13.203,56.84]
[1672918619329,20.0,13.214,13.203,56.84]
[1672918619539,20.0,13.214,13.204,22.41737149]
[1672918619753,20.0,13.214,13.205,56.84]
[1672918619965,20.0,13.214,13.202,20.0]
[1672918620174,20.0,13.214,13.203,56.84]
[1672918621219,20.0,13.214,13.202,20.0]
[1672918621429,20.0,13.214,13.203,56.84]
[1672918622685,20.0,13.214,13.2,42.41737149]
[1672918622686,20.0,13.214,13.202,20.0]
[1672918622901,20.0,13.214,13.203,56.84]
[1672918623331,40.0,13.215,13.203,56.84]
[1672918623546,20.0,13.215,13.203,56.84]
[1672918630698,20.0,13.215,13.204,20.0]
[1672918630699,19.5,13.215,13.204,20.0]
[1672918630887,19.5,13.215,13.205,56.84]
[1672918631421,19.5,13.215,13.206,20.0]
[1672918631634,19.5,13.215,13.207,56.83]
[1672918631846,19.5,13.215,13.208,20.0]
[1672918632588,19.5,13.215,13.207,56.83]
[1672918634461,19.5,13.215,13.206,56.83]
[1672918634883,19.5,13.215,13.206,20.0]
[1672918635101,19.5,13.215,13.207,56.83]
[1672918636479,19.5,13.215,13.206,20.0]
[1672918637638,19.5,13.215,13.204,56.84]
[1672918646163,19.5,13.215,13.205,20.0]
[1672918646566,6.57,13.22,13.205,42.41737149]
[1672918646783,6.57,13.22,13.207,20.0]
[1672918646992,6.57,13.22,13.208,56.82]
[1672918647223,6.57,13.22,13.209,20.0]
[1672918647418,6.57,13.22,13.21,56.81]
[1672918648165,6.57,13.22,13.211,20.0]
[1672918648478,225.4322,13.223,13.211,20.0]
[1672918649643,225.4322,13.223,13.21,56.81]
[1672918651219,225.4322,13.223,13.209,286.4085]
[1672918651826,225.4322,13.223,13.209,229.5885]
[1672918652690,225.4322,13.223,13.211,20.0]
[1672918653211,225.4322,13.223,13.21,76.81]
[1672918653212,225.4322,13.223,13.21,56.81]
[1672918653408,225.4322,13.223,13.209,229.5885]
[1672918653836,225.4322,13.223,13.21,20.0]
[1672918654058,225.4322,13.223,13.21,76.81]
[1672918661919,110.3456,13.223,13.21,99.22737149]
[1672918667824,110.3456,13.223,13.21,105.74737149]
[1672918674866,110.3456,13.223,13.21,85.74737149]
[1672918675175,110.3456,13.223,13.21,79.22737149]
[1672918678008,110.3456,13.223,13.211,20.0]
[1672918679801,110.3456,13.223,13.211,42.41737149]
[1672918681618,169.3888,13.227,13.212,56.81]
[1672918681792,56.74,13.228,13.213,20.0]
[1672918682107,56.73,13.229,13.215,20.0]
[1672918682303,56.73,13.229,13.216,168.1415]
[1672918682515,122.5861,13.23,13.217,20.0]
[1672918683142,116.1361,13.23,13.217,97.98309423]
[1672918683351,56.71,13.234,13.219,20.0]
[1672918683583,20.0,13.233,13.22,56.77]
[1672918683781,20.0,13.233,13.221,20.0]
[1672918683990,76.72,13.233,13.221,20.0]
[1672918684412,76.72,13.233,13.219,20.0]
[1672918685773,76.72,13.233,13.218,56.78]
[1672918685977,6.52,13.23,13.218,56.78]
[1672918686205,121.8273,13.23,13.217,76.78]
[1672918690217,121.8273,13.23,13.217,56.78]
[1672918690866,178.5573,13.23,13.217,56.78]
[1672918691064,121.8273,13.23,13.217,56.78]
[1672918691403,20.0,13.229,13.217,56.78]
[1672918691589,76.73,13.229,13.216,111.3515]
[1672918692337,76.73,13.229,13.212,56.81]
[1672918692663,20.0,13.227,13.21,56.81]
[1672918692980,20.0,13.225,13.21,56.81]
[1672918693157,76.75,13.224,13.211,20.0]
[1672918693371,20.0,13.223,13.211,20.0]
[1672918693919,119.2384,13.223,13.211,20.0]
[1672918695182,119.2384,13.223,13.21,56.81]
[1672918697790,119.3511,13.226,13.21,63.33]
[1672918697994,119.3511,13.226,13.211,144.55844532]
[1672918698216,119.3511,13.226,13.213,20.0]
[1672918698433,121.8073,13.23,13.215,20.0]
[1672918698633,121.8073,13.23,13.216,174.0561]
[1672918698958,20.0,13.228,13.217,20.0]
[1672918699782,20.0,13.229,13.217,20.0]
[1672918700199,20.0,13.229,13.215,76.79]
[1672918701052,121.8073,13.23,13.215,76.79]
[1672918707979,121.8073,13.23,13.216,22.41737149]
[1672918708175,121.8073,13.23,13.217,20.0]
[1672918708384,121.8073,13.23,13.217,76.78]
[1672918708613,115.3073,13.23,13.217,76.78]
[1672918710398,115.3073,13.23,13.217,99.19737149]
[1672918711010,115.3073,13.23,13.217,76.78]
[1672918711737,115.3073,13.23,13.217,20.0]
[1672918717646,115.3073,13.23,13.218,56.78]
[1672918718063,115.3073,13.23,13.219,20.0]
[1672918724141,115.3073,13.23,13.218,56.78]
[1672918724375,115.3073,13.23,13.217,76.78]
[1672918726697,115.3073,13.23,13.217,20.0]
[1672918732035,115.3073,13.23,13.217,76.78]
[1672918737212,56.73,13.229,13.216,115.9424]
[1672918737854,115.3073,13.23,13.216,115.9424]
[1672918738486,121.8273,13.23,13.217,20.0]
[1672918739830,121.8273,13.23,13.216,115.9424]
[1672918740037,76.73,13.229,13.211,56.81]
[1672918740250,20.0,13.228,13.211,20.0]
[1672918740466,76.74,13.227,13.211,20.0]
[1672918740799,20.0,13.226,13.211,20.0]
[1672918740995,76.75,13.225,13.211,20.0]
[1672918741518,20.0,13.225,13.213,20.0]
[1672918742980,20.0,13.226,13.213,20.0]
[1672918743939,20.0,13.226,13.212,56.81]
[1672918744155,20.0,13.225,13.211,20.0]
[1672918744354,56.75,13.224,13.211,20.0]
[1672918744686,40.0,13.223,13.211,20.0]
[1672918744871,155.1566,13.223,13.211,20.0]
[1672918745086,155.1566,13.223,13.21,56.81]
[1672918745297,155.1566,13.223,13.209,174.9218]
[1672918745524,135.1566,13.223,13.209,174.9218]
[1672918745725,135.1566,13.223,13.21,20.0]
[1672918747839,191.9166,13.223,13.21,20.0]
[1672918748147,135.1566,13.223,13.21,42.41737149]
[1672918749842,135.1566,13.223,13.21,22.41737149]
[1672918750034,191.9166,13.223,13.209,118.1018]
[1672918751423,191.9166,13.223,13.209,140.51917149]
[1672918751945,191.9166,13.223,13.21,20.0]
[1672918753730,20.0,13.223,13.212,20.0]
[1672918753944,109.67503003,13.229,13.213,20.0]
[1672918754160,178.5173,13.23,13.215,20.0]
[1672918754346,121.7873,13.23,13.217,20.0]
[1672918755939,121.7873,13.23,13.218,22.41737149]
[1672918756164,121.7873,13.23,13.219,20.0]
[1672918758438,115.3073,13.23,13.219,20.0]
[1672918759921,172.0373,13.23,13.219,20.0]
[1672918762981,115.3073,13.23,13.219,20.0]
[1672918772368,115.3073,13.23,13.219,42.41737149]
[1672918772672,115.3073,13.23,13.219,20.0]
[1672918773308,115.3073,13.23,13.217,76.78]
[1672918782765,115.3073,13.23,13.217,20.0]
[1672918783917,121.8273,13.23,13.216,167.9194]
[1672918784111,56.73,13.229,13.216,111.1294]
[1672918785182,56.73,13.229,13.217,20.0]
[1672918786237,121.8273,13.23,13.217,20.0]
[1672918786556,178.5573,13.23,13.217,20.0]
[1672918787797,178.5573,13.23,13.216,111.1294]
[1672918788132,20.0,13.229,13.216,111.1294]
[1672918788318,20.0,13.229,13.214,115.3328]
[1672918788659,20.0,13.227,13.214,115.3328]
[1672918788968,76.75,13.226,13.21,56.81]
[1672918789161,20.0,13.225,13.211,20.0]
[1672918789376,20.0,13.224,13.211,20.0]
[1672918789594,112.1847,13.223,13.211,20.0]
[1672918794857,112.1847,13.223,13.21,56.81]
[1672918795167,112.1847,13.223,13.209,174.9218]
[1672918795377,112.1847,13.223,13.209,118.1018]
[1672918795590,168.9447,13.223,13.209,118.1018]
[1672918798328,168.9447,13.223,13.209,174.9218]
[1672918799572,168.9447,13.223,13.21,20.0]
[1672918799787,112.1847,13.223,13.211,56.81]
[1672918799998,112.1847,13.223,13.212,20.0]
[1672918800412,112.1847,13.223,13.211,79.22737149]
[1672918800623,6.52,13.22,13.209,118.1018]
[1672918804004,6.52,13.22,13.208,56.82]
[1672918804221,6.52,13.22,13.207,56.83]
[1672918804409,26.52,13.22,13.207,56.83]
[1672918804738,83.29,13.22,13.205,56.84]
[1672918804943,71.2405567,13.219,13.202,56.85]
[1672918805170,76.78,13.218,13.2,100.0]
[1672918805358,20.0,13.216,13.202,22.41737149]
[1672918805560,20.0,13.216,13.201,20.0]
[1672918805561,76.79,13.215,13.201,20.0]
[1672918805771,192.7914,13.215,13.201,20.0]
[1672918805977,20.0,13.214,13.201,20.0]
[1672918806214,20.0,13.213,13.201,20.0]
[1672918807789,20.0,13.214,13.201,20.0]
[1672918808318,20.0,13.214,13.203,20.0]
[1672918808715,20.0,13.214,13.203,42.41737149]
[1672918815137,20.0,13.214,13.203,22.41737149]
[1672918821576,20.0,13.214,13.201,76.85]
[1672918821997,20.0,13.214,13.203,20.0]
[1672918823349,20.0,13.214,13.203,99.25737149]
[1672918823875,20.0,13.214,13.203,79.25737149]
[1672918824203,20.0,13.214,13.201,20.0]
[1672918824409,20.0,13.214,13.201,42.41737149]
[1672918824829,76.8,13.214,13.2,163.38]
[1672918825036,20.0,13.214,13.2,163.38]
[1672918825357,20.0,13.214,13.201,20.0]
[1672918828073,20.0,13.214,13.2,179.27737149]
[1672918828286,20.0,13.214,13.2,122.41737149]
[1672918829136,56.8,13.213,13.2,122.41737149]
[1672918829350,20.0,13.213,13.2,122.41737149]
[1672918831777,20.0,13.213,13.2,100.0]
[1672918831988,6.52,13.21,13.2,100.0]
[1672918832179,76.82,13.209,13.2,100.0]
[1672918832386,20.0,13.208,13.2,99.93904937]
[1672918832610,20.0,13.207,13.2,99.93904937]
[1672918832814,20.0,13.206,13.2,99.93904937]
[1672918833025,20.0,13.204,13.2,99.93904937]
[1672918833241,20.0,13.203,13.2,74.65304937]
[1672918833569,20.0,13.203,13.2,47.03224937]
[1672918834307,20.0,13.203,13.2,44.62914937]
[1672918834614,20.0,13.203,13.2,3.66374937]
[1672918835353,20.0,13.206,13.2,3.66374937]
[1672918835552,20.0,13.207,13.2,3.66374937]
[1672918836928,40.0,13.208,13.2,3.66374937]
[1672918837139,20.0,13.208,13.2,3.66374937]
[1672918841875,20.0,13.207,13.2,3.66374937]
[1672918842271,20.0,13.208,13.2,3.66374937]
[1672918842484,118.7057,13.209,13.2,3.66374937]
[1672918855659,118.7057,13.209,13.2,26.08112086]
[1672918857225,56.79,13.215,13.2,26.08112086]
[1672918857551,20.0,13.214,13.202,20.0]
[1672918857955,20.0,13.214,13.202,42.41737149]
[1672918858161,20.0,13.215,13.202,42.41737149]
[1672918863035,20.0,13.215,13.201,56.85]
[1672918863352,20.0,13.215,13.201,79.26737149]
[1672918864698,20.0,13.215,13.202,20.0]
[1672918870805,20.0,13.215,13.201,22.41737149]
[1672918871409,20.0,13.215,13.2,103.66374937]
[1672918872161,6.52,13.21,13.2,103.66374937]
[1672918874575,6.52,13.21,13.201,56.85]
[1672918874789,6.52,13.21,13.202,20.0]
[1672918877412,6.52,13.21,13.201,20.0]
[1672918877816,6.52,13.21,13.2,103.66374937]
[1672918879400,6.52,13.21,13.201,20.0]
[1672918881095,6.52,13.21,13.2,203.66374937]
[1672918882162,26.52,13.21,13.2,203.66374937]
[1672918883094,6.52,13.21,13.2,203.66374937]
[1672918893603,6.52,13.21,13.201,20.0]
[1672918894142,6.52,13.21,13.201,76.85]
[1672918898418,6.52,13.21,13.201,56.85]
[1672918903162,6.52,13.21,13.2,203.66374937]
[1672918904010,6.52,13.21,13.201,20.0]
[1672918904220,6.52,13.21,13.201,76.85]
[1672918916519,6.52,13.21,13.201,99.26737149]
[1672918917261,6.52,13.21,13.201,76.85]
[1672918920189,20.0,13.215,13.201,76.85]
[1672918920406,20.0,13.215,13.202,137.31627149]
[1672918920724,20.0,13.215,13.204,20.0]
[1672918921039,20.0,13.215,13.205,56.84]
[1672918921236,20.0,13.215,13.206,20.0]
[1672918925787,32.58,13.22,13.206,20.0]
[1672918925978,32.58,13.22,13.208,20.0]
[1672918925979,6.5,13.22,13.208,20.0]
[1672918926308,6.5,13.22,13.209,56.82]
[1672918926735,6.5,13.22,13.209,20.0]
[1672918927251,6.5,13.22,13.209,129.1171]
[1672918927884,6.5,13.22,13.209,109.1171]
[1672918928617,6.5,13.22,13.21,20.0]
[1672918929569,6.5,13.22,13.209,109.1171]
[1672918930924,6.5,13.22,13.2,336.29374937]
[1672918930925,32.58,13.22,13.207,56.83]